[Event "Early-Titled-Tuesday-Blitz-January-23-2024"]
[Site "Chess.com"]
[Date "2024.01.23"]
[Round "6"]
[White "Sibelephant"]
[Black "VladimirKramnik"]
[Result "1-0"]
[WhiteElo "3085"]
[BlackElo "2935"]
[TimeControl "180+1"]
[EndTime "9:06:55 PST"]
[Termination "Sibelephant won on time"]

1. d4 {[%clk 0:02:59.4]} 1... d5 {[%clk 0:02:59.3]} 2. c4 {[%clk 0:02:58.7]}
2... e6 {[%clk 0:02:58.7]} 3. Nf3 {[%clk 0:02:55.1]} 3... Nf6 {[%clk 0:02:59.2]}
4. Nc3 {[%clk 0:02:54.9]} 4... c5 {[%clk 0:02:56.7]} 5. e3 {[%clk 0:02:52]} 5...
dxc4 {[%clk 0:02:56.3]} 6. Bxc4 {[%clk 0:02:51.6]} 6... a6 {[%clk 0:02:56.9]} 7.
O-O {[%clk 0:02:50.8]} 7... b5 {[%clk 0:02:56.5]} 8. Be2 {[%clk 0:02:51.1]} 8...
Bb7 {[%clk 0:02:56.8]} 9. dxc5 {[%clk 0:02:50.7]} 9... Bxc5 {[%clk 0:02:56.6]}
10. Qxd8+ {[%clk 0:02:49.3]} 10... Kxd8 {[%clk 0:02:57]} 11. Nd2 {[%clk
0:02:46.5]} 11... Ke7 {[%clk 0:02:54.8]} 12. Nb3 {[%clk 0:02:46.3]} 12... Nbd7
{[%clk 0:02:53.8]} 13. Rd1 {[%clk 0:02:30.8]} 13... Rhc8 {[%clk 0:02:28]} 14.
Na5 {[%clk 0:01:55.8]} 14... Bd5 {[%clk 0:02:07.5]} 15. a4 {[%clk 0:01:08.6]}
15... bxa4 {[%clk 0:01:31.8]} 16. Nxd5+ {[%clk 0:00:54.3]} 16... Nxd5 {[%clk
0:01:25.8]} 17. Rxa4 {[%clk 0:00:54.6]} 17... N7b6 {[%clk 0:01:12]} 18. Ra1
{[%clk 0:00:52.7]} 18... Bb4 {[%clk 0:01:08.8]} 19. e4 {[%clk 0:00:34.5]} 19...
Nf6 {[%clk 0:01:08.7]} 20. Be3 {[%clk 0:00:25.3]} 20... Bc5 {[%clk 0:01:01.9]}
21. Bxc5+ {[%clk 0:00:25.3]} 21... Rxc5 {[%clk 0:01:01]} 22. f3 {[%clk
0:00:24.2]} 22... Rc2 {[%clk 0:00:54.5]} 23. Bf1 {[%clk 0:00:19.2]} 23... g5
{[%clk 0:00:48.9]} 24. b4 {[%clk 0:00:17.1]} 24... g4 {[%clk 0:00:47.8]} 25.
Rdc1 {[%clk 0:00:13.1]} 25... Rxc1 {[%clk 0:00:45]} 26. Rxc1 {[%clk 0:00:13]}
26... gxf3 {[%clk 0:00:45.7]} 27. gxf3 {[%clk 0:00:13.4]} 27... Nfd7 {[%clk
0:00:45.6]} 28. Kf2 {[%clk 0:00:13.4]} 28... Kf6 {[%clk 0:00:40.4]} 29. Rc6
{[%clk 0:00:12.2]} 29... Rb8 {[%clk 0:00:37.3]} 30. Bxa6 {[%clk 0:00:11.1]}
30... Ne5 {[%clk 0:00:34.5]} 31. Rc7 {[%clk 0:00:10.6]} 31... Na4 {[%clk
0:00:28.3]} 32. b5 {[%clk 0:00:10]} 32... Nc5 {[%clk 0:00:21.8]} 33. Ke3 {[%clk
0:00:08.2]} 33... Nxa6 {[%clk 0:00:09.2]} 34. bxa6 {[%clk 0:00:08.2]} 34... Rb5
{[%clk 0:00:09.9]} 35. Nc6 {[%clk 0:00:05.1]} 35... Rb3+ {[%clk 0:00:09.8]} 36.
Kd4 {[%clk 0:00:05.4]} 36... Nxf3+ {[%clk 0:00:07.1]} 37. Kc5 {[%clk 0:00:04.9]}
37... Ne5 {[%clk 0:00:04.8]} 38. a7 {[%clk 0:00:04.5]} 38... Ra3 {[%clk
0:00:04.3]} 39. Nxe5 {[%clk 0:00:03.5]} 39... Kxe5 {[%clk 0:00:04.4]} 40. Rxf7
{[%clk 0:00:03.5]} 40... Kxe4 {[%clk 0:00:04.5]} 41. Rxh7 {[%clk 0:00:03.7]}
41... e5 {[%clk 0:00:04.7]} 42. Kb6 {[%clk 0:00:03.1]} 42... Rb3+ {[%clk
0:00:04.4]} 43. Kc6 {[%clk 0:00:03.5]} 43... Rc3+ {[%clk 0:00:03.8]} 44. Kb7
{[%clk 0:00:03.9]} 44... Rb3+ {[%clk 0:00:04.1]} 45. Kc8 {[%clk 0:00:04.4]}
45... Ra3 {[%clk 0:00:03.9]} 46. Kb8 {[%clk 0:00:04.8]} 46... Kf4 {[%clk
0:00:03]} 47. a8=Q {[%clk 0:00:04.4]} 47... Rxa8+ {[%clk 0:00:03]} 48. Kxa8
{[%clk 0:00:05.1]} 48... e4 {[%clk 0:00:03.6]} 49. Rf7+ {[%clk 0:00:05.7]} 49...
Kg4 {[%clk 0:00:03.3]} 50. Re7 {[%clk 0:00:05.9]} 1-0

[Event "Early-Titled-Tuesday-Blitz-January-23-2024"]
[Site "Chess.com"]
[Date "2024.01.23"]
[Round "6"]
[White "Yaacovn"]
[Black "viktorgen2021"]
[Result "1-0"]
[WhiteElo "2780"]
[BlackElo "2545"]
[TimeControl "180+1"]
[EndTime "9:06:55 PST"]
[Termination "Yaacovn won on time"]

1. d4 {[%clk 0:03:00.2]} 1... Nf6 {[%clk 0:02:58.8]} 2. e3 {[%clk 0:03:00.2]}
2... g6 {[%clk 0:02:56.6]} 3. Nf3 {[%clk 0:03:00.3]} 3... Bg7 {[%clk 0:02:56.7]}
4. Be2 {[%clk 0:03:01.2]} 4... O-O {[%clk 0:02:57.2]} 5. O-O {[%clk 0:03:02.1]}
5... d6 {[%clk 0:02:57]} 6. b3 {[%clk 0:03:02.5]} 6... c5 {[%clk 0:02:52.1]} 7.
Bb2 {[%clk 0:03:02.5]} 7... cxd4 {[%clk 0:02:51.4]} 8. Nxd4 {[%clk 0:03:03.4]}
8... Nc6 {[%clk 0:02:51.3]} 9. c4 {[%clk 0:03:03.4]} 9... d5 {[%clk 0:02:47.7]}
10. cxd5 {[%clk 0:03:03.1]} 10... Nxd4 {[%clk 0:02:44.2]} 11. Bxd4 {[%clk
0:03:02.9]} 11... Nxd5 {[%clk 0:02:38.7]} 12. Bxg7 {[%clk 0:03:02.5]} 12... Kxg7
{[%clk 0:02:39.6]} 13. Qd4+ {[%clk 0:03:02]} 13... Nf6 {[%clk 0:02:39.8]} 14.
Rd1 {[%clk 0:03:01.9]} 14... Qa5 {[%clk 0:02:37.6]} 15. Qc3 {[%clk 0:02:55.4]}
15... Qg5 {[%clk 0:02:36.2]} 16. Bf3 {[%clk 0:02:55.2]} 16... Bg4 {[%clk
0:02:34.9]} 17. Nd2 {[%clk 0:02:54.7]} 17... Rac8 {[%clk 0:02:33.2]} 18. Qb2
{[%clk 0:02:53.6]} 18... Bxf3 {[%clk 0:02:14.5]} 19. Nxf3 {[%clk 0:02:53.3]}
19... Qf5 {[%clk 0:02:15]} 20. Nd4 {[%clk 0:02:51]} 20... Qe4 {[%clk 0:02:13.4]}
21. Rac1 {[%clk 0:02:50.4]} 21... Rfd8 {[%clk 0:02:09.1]} 22. h3 {[%clk
0:02:49.9]} 22... h5 {[%clk 0:01:48.6]} 23. Rxc8 {[%clk 0:02:38.6]} 23... Rxc8
{[%clk 0:01:48.6]} 24. Rc1 {[%clk 0:02:39.2]} 24... Rxc1+ {[%clk 0:01:39]} 25.
Qxc1 {[%clk 0:02:40.1]} 25... e5 {[%clk 0:01:38.2]} 26. Nf3 {[%clk 0:02:39.4]}
26... Qf5 {[%clk 0:01:25.7]} 27. Qc7 {[%clk 0:02:35]} 27... e4 {[%clk
0:01:22.5]} 28. Nd4 {[%clk 0:02:27.6]} 28... Qd7 {[%clk 0:01:06.4]} 29. Qe5
{[%clk 0:02:15.3]} 29... Qd5 {[%clk 0:01:05.3]} 30. Qe7 {[%clk 0:02:11]} 30...
Qd7 {[%clk 0:01:02.1]} 31. Qc5 {[%clk 0:02:10.4]} 31... a6 {[%clk 0:01:01.1]}
32. Qe5 {[%clk 0:01:58.8]} 32... Qd5 {[%clk 0:01:00.6]} 33. Qc7 {[%clk
0:01:51.9]} 33... Qd7 {[%clk 0:01:00.6]} 34. Qb6 {[%clk 0:01:49.7]} 34... Nd5
{[%clk 0:00:58]} 35. Qc5 {[%clk 0:01:49.6]} 35... Nf6 {[%clk 0:00:58.4]} 36. a4
{[%clk 0:01:47.1]} 36... Qd5 {[%clk 0:00:56.4]} 37. Qb6 {[%clk 0:01:46.8]} 37...
Nd7 {[%clk 0:00:51.5]} 38. Qc7 {[%clk 0:01:43.2]} 38... Nc5 {[%clk 0:00:51.6]}
39. Qa5 {[%clk 0:01:19.9]} 39... Qd6 {[%clk 0:00:41.4]} 40. Qb4 {[%clk
0:01:17.6]} 40... Qd5 {[%clk 0:00:41]} 41. Qc3 {[%clk 0:01:12.6]} 41... Kh7
{[%clk 0:00:41.3]} 42. Qa5 {[%clk 0:01:11.4]} 42... Qd6 {[%clk 0:00:40.9]} 43.
Qb4 {[%clk 0:01:10.5]} 43... Qd5 {[%clk 0:00:41.1]} 44. a5 {[%clk 0:01:06.8]}
44... Nd3 {[%clk 0:00:39.8]} 45. Qe7 {[%clk 0:01:06.4]} 45... Kg7 {[%clk
0:00:35]} 46. b4 {[%clk 0:01:05.9]} 46... Qc4 {[%clk 0:00:20.6]} 47. Qxe4 {[%clk
0:01:02]} 47... Qc1+ {[%clk 0:00:19.7]} 48. Kh2 {[%clk 0:01:02]} 48... Nxf2
{[%clk 0:00:15.7]} 49. Qe5+ {[%clk 0:01:00]} 49... Kh7 {[%clk 0:00:15]} 50. Kg3
{[%clk 0:00:51.6]} 50... Nd3 {[%clk 0:00:14]} 51. Qe7 {[%clk 0:00:49]} 51... Kg8
{[%clk 0:00:13.1]} 52. Qd8+ {[%clk 0:00:45.2]} 52... Kg7 {[%clk 0:00:13.2]} 53.
Nf5+ {[%clk 0:00:41.7]} 53... gxf5 {[%clk 0:00:12.5]} 54. Qxd3 {[%clk
0:00:42.2]} 54... Qc7+ {[%clk 0:00:12.2]} 55. Kf3 {[%clk 0:00:40.7]} 55... Qc6+
{[%clk 0:00:11.6]} 56. Kf2 {[%clk 0:00:40.7]} 56... Kg6 {[%clk 0:00:10.8]} 57.
Kg3 {[%clk 0:00:37.9]} 57... Qc7+ {[%clk 0:00:10.7]} 58. Kf3 {[%clk 0:00:35.4]}
58... Qc6+ {[%clk 0:00:10.9]} 59. e4 {[%clk 0:00:35.5]} 59... fxe4+ {[%clk
0:00:04.4]} 60. Qxe4+ {[%clk 0:00:35.4]} 60... Qxe4+ {[%clk 0:00:03.8]} 61. Kxe4
{[%clk 0:00:36.3]} 61... Kg5 {[%clk 0:00:04.5]} 62. g3 {[%clk 0:00:36.2]} 62...
f5+ {[%clk 0:00:03.2]} 63. Ke5 {[%clk 0:00:36.3]} 63... Kg6 {[%clk 0:00:01.6]}
64. h4 {[%clk 0:00:36.1]} 1-0

[Event "Early-Titled-Tuesday-Blitz-January-23-2024"]
[Site "Chess.com"]
[Date "2024.01.23"]
[Round "6"]
[White "Maftuna2303"]
[Black "only_strong_moves"]
[Result "0-1"]
[WhiteElo "2437"]
[BlackElo "2622"]
[TimeControl "180+1"]
[EndTime "9:06:55 PST"]
[Termination "only_strong_moves won by resignation"]

1. e4 {[%clk 0:03:00.9]} 1... e6 {[%clk 0:02:58.5]} 2. d4 {[%clk 0:03:00.3]}
2... d5 {[%clk 0:02:58.4]} 3. Nd2 {[%clk 0:02:58.3]} 3... c5 {[%clk 0:02:57.4]}
4. exd5 {[%clk 0:02:57.2]} 4... Qxd5 {[%clk 0:02:56.4]} 5. Ngf3 {[%clk
0:02:57.2]} 5... cxd4 {[%clk 0:02:56.7]} 6. Bc4 {[%clk 0:02:57.2]} 6... Qd6
{[%clk 0:02:56.4]} 7. O-O {[%clk 0:02:57.2]} 7... Nf6 {[%clk 0:02:56.5]} 8. Nb3
{[%clk 0:02:57.2]} 8... Nc6 {[%clk 0:02:57]} 9. Nbxd4 {[%clk 0:02:55]} 9... Nxd4
{[%clk 0:02:56.3]} 10. Qxd4 {[%clk 0:02:54.6]} 10... Qxd4 {[%clk 0:02:47.5]} 11.
Nxd4 {[%clk 0:02:54.6]} 11... Bd6 {[%clk 0:02:41]} 12. c3 {[%clk 0:02:51]} 12...
O-O {[%clk 0:02:40.4]} 13. h3 {[%clk 0:02:47.9]} 13... a6 {[%clk 0:02:40.1]} 14.
a4 {[%clk 0:02:47]} 14... e5 {[%clk 0:02:32.5]} 15. Nf3 {[%clk 0:02:37]} 15...
Bf5 {[%clk 0:02:26.6]} 16. Be3 {[%clk 0:02:35.6]} 16... Rac8 {[%clk 0:02:25]}
17. Be2 {[%clk 0:02:31.6]} 17... Nd5 {[%clk 0:02:23.9]} 18. Rfd1 {[%clk
0:02:24.6]} 18... Be6 {[%clk 0:01:37.1]} 19. Ng5 {[%clk 0:02:04.6]} 19... Nxe3
{[%clk 0:01:21.3]} 20. Rxd6 {[%clk 0:02:01.5]} 20... Nf5 {[%clk 0:01:21.5]} 21.
Rd2 {[%clk 0:01:43.7]} 21... Bc4 {[%clk 0:01:13.3]} 22. Bf3 {[%clk 0:01:39.9]}
22... Rc7 {[%clk 0:01:05]} 23. a5 {[%clk 0:01:38.2]} 23... f6 {[%clk 0:00:47.4]}
24. Ne4 {[%clk 0:01:35.7]} 24... Kf7 {[%clk 0:00:41.9]} 25. Nd6+ {[%clk
0:01:34.7]} 25... Nxd6 {[%clk 0:00:41.2]} 26. Rxd6 {[%clk 0:01:35.2]} 26... Ke7
{[%clk 0:00:41.4]} 27. Rad1 {[%clk 0:01:34.3]} 27... f5 {[%clk 0:00:33.8]} 28.
Rb6 {[%clk 0:01:28.5]} 28... e4 {[%clk 0:00:32.7]} 29. Re1 {[%clk 0:01:24.8]}
29... Rd8 {[%clk 0:00:27.4]} 30. Bd1 {[%clk 0:01:23.6]} 30... Kf7 {[%clk
0:00:19.9]} 31. Bb3 {[%clk 0:01:20.4]} 31... Bxb3 {[%clk 0:00:19.4]} 32. Rxb3
{[%clk 0:01:20.2]} 32... Rd5 {[%clk 0:00:19.5]} 33. Ra1 {[%clk 0:01:17.9]} 33...
Rd2 {[%clk 0:00:19]} 34. Ra4 {[%clk 0:01:16.6]} 34... Ke6 {[%clk 0:00:13.1]} 35.
Rab4 {[%clk 0:01:15.6]} 35... Rdd7 {[%clk 0:00:13.6]} 36. Rb6+ {[%clk
0:01:15.1]} 36... Ke5 {[%clk 0:00:13]} 37. Kf1 {[%clk 0:01:14.7]} 37... g5
{[%clk 0:00:12.9]} 38. Ke2 {[%clk 0:01:13.9]} 38... f4 {[%clk 0:00:13.4]} 39.
R3b4 {[%clk 0:01:12.4]} 39... Rf7 {[%clk 0:00:10.8]} 40. Rd4 {[%clk 0:01:09.3]}
40... Rfd7 {[%clk 0:00:10.6]} 41. Rdb4 {[%clk 0:01:03.5]} 41... Rd5 {[%clk
0:00:10.1]} 42. Rh6 {[%clk 0:01:01.7]} 42... Rcd7 {[%clk 0:00:09.8]} 43. g3
{[%clk 0:00:57.7]} 43... Rd2+ {[%clk 0:00:10]} 44. Kf1 {[%clk 0:00:57.6]} 44...
f3 {[%clk 0:00:09]} 45. Kg1 {[%clk 0:00:55.7]} 45... Rd1+ {[%clk 0:00:09.6]} 46.
Kh2 {[%clk 0:00:55.9]} 46... R7d2 {[%clk 0:00:10.2]} 47. h4 {[%clk 0:00:54.3]}
47... Rxf2+ {[%clk 0:00:10.1]} 48. Kh3 {[%clk 0:00:54.2]} 48... gxh4 {[%clk
0:00:09.6]} 49. Rxh4 {[%clk 0:00:53.3]} 49... Rh1+ {[%clk 0:00:09.6]} 50. Kg4
{[%clk 0:00:53.4]} 50... Rxh4+ {[%clk 0:00:10.5]} 51. Kxh4 {[%clk 0:00:49.7]}
51... e3 {[%clk 0:00:11.4]} 52. Rxb7 {[%clk 0:00:48.1]} 52... e2 {[%clk
0:00:11.6]} 53. Re7+ {[%clk 0:00:47.9]} 53... Kd5 {[%clk 0:00:12.1]} 54. Kg4
{[%clk 0:00:45.3]} 54... Rf1 {[%clk 0:00:12.7]} 55. b4 {[%clk 0:00:31.3]} 55...
e1=Q {[%clk 0:00:12.6]} 56. Rxe1 {[%clk 0:00:31.3]} 56... Rxe1 {[%clk
0:00:13.5]} 57. Kxf3 {[%clk 0:00:31.5]} 57... Rc1 {[%clk 0:00:14.1]} 0-1

[Event "Early-Titled-Tuesday-Blitz-January-23-2024"]
[Site "Chess.com"]
[Date "2024.01.23"]
[Round "6"]
[White "ahkashefi2800"]
[Black "KevinGeorgeMicheal"]
[Result "0-1"]
[WhiteElo "2563"]
[BlackElo "2372"]
[TimeControl "180+1"]
[EndTime "9:06:55 PST"]
[Termination "KevinGeorgeMicheal won on time"]

1. Nf3 {[%clk 0:03:00.9]} 1... Nf6 {[%clk 0:02:55.9]} 2. g3 {[%clk 0:03:01.8]}
2... g6 {[%clk 0:02:55.6]} 3. Bg2 {[%clk 0:03:02.7]} 3... Bg7 {[%clk 0:02:55.4]}
4. O-O {[%clk 0:03:03.6]} 4... O-O {[%clk 0:02:55.4]} 5. d3 {[%clk 0:03:02]}
5... d6 {[%clk 0:02:54.3]} 6. b3 {[%clk 0:03:00.1]} 6... e5 {[%clk 0:02:50.4]}
7. Bb2 {[%clk 0:02:59.6]} 7... h6 {[%clk 0:02:49.2]} 8. Nbd2 {[%clk 0:02:59]}
8... Be6 {[%clk 0:02:48.9]} 9. c4 {[%clk 0:02:58.7]} 9... Qd7 {[%clk 0:02:48.2]}
10. Qc2 {[%clk 0:02:50.7]} 10... Bh3 {[%clk 0:02:47.8]} 11. e4 {[%clk
0:02:47.1]} 11... Bxg2 {[%clk 0:02:46.7]} 12. Kxg2 {[%clk 0:02:47.8]} 12... Qe7
{[%clk 0:02:45]} 13. h4 {[%clk 0:02:39.1]} 13... Nbd7 {[%clk 0:02:42.4]} 14.
Rad1 {[%clk 0:02:35.3]} 14... a5 {[%clk 0:02:40.4]} 15. Rfe1 {[%clk 0:02:34.7]}
15... c5 {[%clk 0:02:29.7]} 16. a3 {[%clk 0:02:19.5]} 16... Ne8 {[%clk
0:02:19.8]} 17. Nb1 {[%clk 0:02:16.5]} 17... Nc7 {[%clk 0:02:17.4]} 18. Nc3
{[%clk 0:02:15.9]} 18... Kh7 {[%clk 0:02:16.1]} 19. Nd2 {[%clk 0:02:13.2]} 19...
f5 {[%clk 0:02:12.2]} 20. Nf1 {[%clk 0:02:06.8]} 20... f4 {[%clk 0:02:02.2]} 21.
Nd2 {[%clk 0:01:48.1]} 21... Rf7 {[%clk 0:01:45.8]} 22. Nf3 {[%clk 0:01:41.7]}
22... Raf8 {[%clk 0:01:43.1]} 23. g4 {[%clk 0:01:25.9]} 23... Qe6 {[%clk
0:01:38]} 24. Qe2 {[%clk 0:01:16.1]} 24... Qxg4+ {[%clk 0:01:37]} 25. Kh2 {[%clk
0:01:16.3]} 25... Nf6 {[%clk 0:01:12.6]} 26. Rg1 {[%clk 0:01:11.3]} 26... Qh5
{[%clk 0:01:10.7]} 27. Kg2 {[%clk 0:00:45.1]} 27... Ne6 {[%clk 0:00:58.1]} 28.
Kf1 {[%clk 0:00:42.4]} 28... Bh8 {[%clk 0:00:40]} 29. Nb5 {[%clk 0:00:40.8]}
29... Ne8 {[%clk 0:00:31.5]} 30. Ke1 {[%clk 0:00:39.9]} 30... Bf6 {[%clk
0:00:22.9]} 31. Kd2 {[%clk 0:00:35.6]} 31... b6 {[%clk 0:00:21.2]} 32. Rg2
{[%clk 0:00:33.5]} 32... Rg8 {[%clk 0:00:18.2]} 33. Rdg1 {[%clk 0:00:32.6]}
33... N6c7 {[%clk 0:00:17.5]} 34. Nc3 {[%clk 0:00:26.9]} 34... Kh8 {[%clk
0:00:16.1]} 35. Kd1 {[%clk 0:00:25.3]} 35... Rfg7 {[%clk 0:00:14.3]} 36. b4
{[%clk 0:00:23.6]} 36... axb4 {[%clk 0:00:12.4]} 37. axb4 {[%clk 0:00:24.5]}
37... Na6 {[%clk 0:00:11.8]} 38. Nd5 {[%clk 0:00:20.5]} 38... Bd8 {[%clk
0:00:11.2]} 39. b5 {[%clk 0:00:18.2]} 39... Nac7 {[%clk 0:00:10.5]} 40. Nxf4
{[%clk 0:00:03.5]} 40... exf4 {[%clk 0:00:10.1]} 41. Rxg6 {[%clk 0:00:03.6]}
41... Kh7 {[%clk 0:00:07.7]} 0-1

[Event "Early-Titled-Tuesday-Blitz-January-23-2024"]
[Site "Chess.com"]
[Date "2024.01.23"]
[Round "6"]
[White "Balla_Tamas"]
[Black "Crazy_girl99"]
[Result "1/2-1/2"]
[WhiteElo "2468"]
[BlackElo "2608"]
[TimeControl "180+1"]
[EndTime "9:06:55 PST"]
[Termination "Game drawn - insufficient material"]

1. e4 {[%clk 0:03:00.9]} 1... e5 {[%clk 0:02:55.2]} 2. Nf3 {[%clk 0:02:59.5]}
2... Nc6 {[%clk 0:02:54.7]} 3. d4 {[%clk 0:02:59.9]} 3... exd4 {[%clk
0:02:54.7]} 4. Nxd4 {[%clk 0:03:00.8]} 4... Nf6 {[%clk 0:02:54.7]} 5. Nxc6
{[%clk 0:03:00.7]} 5... bxc6 {[%clk 0:02:54.1]} 6. e5 {[%clk 0:03:01.3]} 6...
Qe7 {[%clk 0:02:52.2]} 7. Qe2 {[%clk 0:03:00.4]} 7... Nd5 {[%clk 0:02:52.9]} 8.
h4 {[%clk 0:02:57.4]} 8... a5 {[%clk 0:02:45.2]} 9. c4 {[%clk 0:02:56.4]} 9...
Nb6 {[%clk 0:02:44.6]} 10. Nd2 {[%clk 0:02:46.2]} 10... Qe6 {[%clk 0:02:44.4]}
11. g3 {[%clk 0:02:42.3]} 11... Ba6 {[%clk 0:02:34]} 12. Bh3 {[%clk 0:02:32.8]}
12... Bxc4 {[%clk 0:02:21.7]} 13. Bxe6 {[%clk 0:02:32]} 13... Bxe2 {[%clk
0:02:21.3]} 14. Bxf7+ {[%clk 0:02:32.7]} 14... Kxf7 {[%clk 0:02:21.8]} 15. Kxe2
{[%clk 0:02:33.4]} 15... Re8 {[%clk 0:02:20]} 16. f4 {[%clk 0:02:22.1]} 16... d6
{[%clk 0:02:19.7]} 17. Nf3 {[%clk 0:02:17.1]} 17... dxe5 {[%clk 0:02:19.7]} 18.
Nxe5+ {[%clk 0:02:15.8]} 18... Kf6 {[%clk 0:02:10.6]} 19. Kf3 {[%clk 0:02:10.2]}
19... c5 {[%clk 0:01:39.4]} 20. Bd2 {[%clk 0:02:06.6]} 20... Bd6 {[%clk
0:01:35.9]} 21. Rhe1 {[%clk 0:01:59.9]} 21... Bxe5 {[%clk 0:01:21.8]} 22. fxe5+
{[%clk 0:02:00.1]} 22... Ke6 {[%clk 0:01:21.8]} 23. Bxa5 {[%clk 0:01:59.9]}
23... Rhf8+ {[%clk 0:01:21.8]} 24. Kg2 {[%clk 0:01:58.8]} 24... Nc4 {[%clk
0:01:13.4]} 25. Bc3 {[%clk 0:01:56.5]} 25... Rf5 {[%clk 0:01:06.9]} 26. Re4
{[%clk 0:01:50.8]} 26... Kd5 {[%clk 0:01:02.5]} 27. Rae1 {[%clk 0:01:35.4]}
27... Ref8 {[%clk 0:00:59.1]} 28. e6 {[%clk 0:01:31.2]} 28... Rf2+ {[%clk
0:00:56.4]} 29. Kh3 {[%clk 0:01:31.6]} 29... Nd6 {[%clk 0:00:53.6]} 30. Re5+
{[%clk 0:01:29.5]} 30... Kc6 {[%clk 0:00:51.7]} 31. e7 {[%clk 0:01:28.8]} 31...
Re8 {[%clk 0:00:50.8]} 32. R5e3 {[%clk 0:01:04.6]} 32... g6 {[%clk 0:00:46.1]}
33. a4 {[%clk 0:00:46.5]} 33... Kd7 {[%clk 0:00:29.7]} 34. a5 {[%clk 0:00:44]}
34... Nf5 {[%clk 0:00:25.3]} 35. Rd3+ {[%clk 0:00:36]} 35... Nd6 {[%clk
0:00:24]} 36. Rde3 {[%clk 0:00:31.9]} 36... Nf5 {[%clk 0:00:23.8]} 37. Rd1+
{[%clk 0:00:29]} 37... Nd6 {[%clk 0:00:20.8]} 38. Be5 {[%clk 0:00:22.8]} 38...
Rxe7 {[%clk 0:00:19.8]} 39. Bxd6 {[%clk 0:00:23.3]} 39... cxd6 {[%clk 0:00:19]}
40. Rxe7+ {[%clk 0:00:22.9]} 40... Kxe7 {[%clk 0:00:19.9]} 41. Ra1 {[%clk
0:00:22]} 41... Rxb2 {[%clk 0:00:19]} 42. a6 {[%clk 0:00:22.6]} 42... Rb8 {[%clk
0:00:19.5]} 43. a7 {[%clk 0:00:21.2]} 43... Ra8 {[%clk 0:00:20.2]} 44. Kg4
{[%clk 0:00:21.8]} 44... d5 {[%clk 0:00:18.9]} 45. Kf4 {[%clk 0:00:21.2]} 45...
Kd6 {[%clk 0:00:19.1]} 46. Ra6+ {[%clk 0:00:21.2]} 46... Kc7 {[%clk 0:00:19.6]}
47. Ke5 {[%clk 0:00:21.5]} 47... d4 {[%clk 0:00:19.9]} 48. Kd5 {[%clk
0:00:20.3]} 48... Kb7 {[%clk 0:00:20.6]} 49. Rf6 {[%clk 0:00:15.9]} 49... d3
{[%clk 0:00:20.6]} 50. Kxc5 {[%clk 0:00:14.4]} 50... Rxa7 {[%clk 0:00:16]} 51.
Rd6 {[%clk 0:00:14.1]} 51... Ra3 {[%clk 0:00:15.6]} 52. Kc4 {[%clk 0:00:13.8]}
52... d2 {[%clk 0:00:15.5]} 53. Rxd2 {[%clk 0:00:14.2]} 53... Rxg3 {[%clk
0:00:16.2]} 54. Rd7+ {[%clk 0:00:14.9]} 54... Kc6 {[%clk 0:00:16.7]} 55. Rxh7
{[%clk 0:00:15.5]} 55... Kd6 {[%clk 0:00:17]} 56. Rh6 {[%clk 0:00:15.3]} 56...
Ke5 {[%clk 0:00:17.4]} 57. Kc5 {[%clk 0:00:15]} 57... Kf5 {[%clk 0:00:17.8]} 58.
Kd6 {[%clk 0:00:15.3]} 58... Rh3 {[%clk 0:00:18]} 59. Ke7 {[%clk 0:00:14.8]}
59... g5 {[%clk 0:00:18.5]} 60. hxg5 {[%clk 0:00:14.7]} 60... Re3+ {[%clk
0:00:17.4]} 61. Kf7 {[%clk 0:00:13.9]} 61... Kxg5 {[%clk 0:00:18]} 62. Ra6
{[%clk 0:00:14.1]} 62... Rf3+ {[%clk 0:00:18.4]} 63. Ke7 {[%clk 0:00:14.4]}
63... Re3+ {[%clk 0:00:19]} 64. Kd7 {[%clk 0:00:14.1]} 64... Rd3+ {[%clk
0:00:19.4]} 65. Rd6 {[%clk 0:00:14.6]} 65... Rxd6+ {[%clk 0:00:19.7]} 66. Kxd6
{[%clk 0:00:15.1]} 1/2-1/2